fUSD/lending_fUSD_20240103
["ID","MTS","AMOUNT","RATE_DAILY","PERIOD"]
[310036507,1704294652439,-726.82816067,0.00032774,4]
[310036508,1704294652449,-1509.36674793,0.00032775,4]
[310036509,1704294652459,-253.75032008,0.00032775,4]
[310036510,1704294652469,-250.0,0.00032776,2]
[310036511,1704294652479,-1484328.59039573,0.00032776,2]
[310036512,1704294652497,-475.846,0.00032776,2]
[310036566,1704294730221,500.0,0.00022999,4]
[310036567,1704294730321,166.02368874,0.00022999,4]
[310036883,1704295111223,1000.0,0.000264,60]
[310036884,1704295126459,168.58,0.00028985,120]
[310036885,1704295173680,202.0,0.00024001,2]
[310036978,1704295311091,10000.0,0.0003,120]
[310036984,1704295369387,150.0,0.0003,120]
[310037480,1704295831874,-292.16600001,0.00024994,2]
[310037481,1704295831888,-90.80378773,0.00024994,2]
[310037482,1704295831898,-512.20734995,0.00024995,2]
[310037483,1704295831999,-1357.89469464,0.00024995,2]
[310037484,1704295832012,-393.86738927,0.00024995,2]
[310037485,1704295832022,-220.42708229,0.00025,2]
[310037486,1704295832031,-431.77171128,0.00025,2]
[310037487,1704295832041,-90.92325716,0.00025118,2]
[310037488,1704295832072,-111.07674284,0.00025118,2]
[310037489,1704295832082,-240.11596558,0.00026417,2]
[310037505,1704295838071,-67.69403442,0.00026417,2]
[310037506,1704295838081,-222.8434334,0.00027,2]
[310037507,1704295838092,-202.0,0.00027298,5]
[310037508,1704295838101,-250.0,0.000274,2]
[310037509,1704295838111,-340.49,0.00027928,2]
[310037510,1704295838120,-996.49,0.00027945,2]
[310037511,1704295838130,-194.91,0.00027983,2]
[310037512,1704295838140,-2000.0,0.00028012,2]
[310037513,1704295838152,-225.48,0.00028021,2]
[310037514,1704295838162,-250.0,0.00028291,2]
[310037515,1704295838172,-250.0,0.00028314,2]
[310037516,1704295838182,-156.34,0.00028429,2]
[310037517,1704295838191,-150.0,0.00028454,2]
[310037518,1704295838201,-150.0,0.00028454,2]
[310037519,1704295838210,-616.0,0.00028455,2]
[310037520,1704295838220,-205.27,0.00028455,4]
[310037521,1704295838230,-8940.36,0.00028455,2]
[310037522,1704295838240,-157.31874022,0.00028479,2]
[310037523,1704295838250,-150.0,0.00028576,2]
[310037524,1704295838260,-307.81,0.00028681,2]
[310037525,1704295838270,-158.75,0.00028801,2]
[310037526,1704295838279,-1349.38,0.00028966,10]
[310037527,1704295838289,-1124.48,0.00028966,10]
[310037528,1704295838299,-628.46944357,0.00028974,2]
[310037529,1704295838308,-248.88597772,0.00028974,2]
[310037530,1704295838318,-155.0,0.00028974,2]
[310037531,1704295838328,-7289.16792401,0.00028974,2]
[310037532,1704295838338,-155.0,0.00028974,2]
[310037533,1704295838348,-695.17387652,0.00028974,2]
[310037534,1704295838358,-245.75950104,0.00028974,2]
[310037535,1704295838368,-416.54397333,0.00028974,2]
[310037536,1704295838377,-7753.85560688,0.00028974,2]
[310037537,1704295838387,-930.65377977,0.00028974,2]
[310037538,1704295838397,-696.75265605,0.00028974,2]
[310037539,1704295838407,-962.51555815,0.00028974,2]
[310037540,1704295838417,-3612.04475606,0.00028974,2]
[310037541,1704295838427,-3704.41060687,0.00028975,4]
[310037542,1704295838437,-1468.50635909,0.00028975,2]
[310037543,1704295838447,-778.64,0.00028975,2]
[310037544,1704295838457,-778.64,0.00028975,2]
[310037545,1704295838467,-778.64,0.00028975,2]
[310037546,1704295838476,-778.64,0.00028975,2]
[310037547,1704295838487,-778.64,0.00028975,2]
[310037548,1704295838497,-778.64,0.00028975,2]
[310037549,1704295838507,-778.64,0.00028975,2]
[310037550,1704295838517,-2848.66124333,0.00028976,2]
[310037552,1704295838534,-2611.2,0.00028976,2]
[310037556,1704295838590,-300.0,0.00028976,2]
[310037567,1704295840413,-1194.75816904,0.00028976,2]
[310037568,1704295840491,-492.6875681,0.00028976,2]
[310037569,1704295840503,-7749.83513777,0.00028976,2]
[310037570,1704295841346,-84802.85788176,0.00028976,2]
[310037571,1704295841356,-199.28,0.00029177,2]
[310037572,1704295841367,-384.0,0.00029333,2]
[310037573,1704295841377,-202.0,0.00029479,9]
[310037574,1704295841386,-427.26741868,0.00029496,10]
[310037575,1704295841397,-7414.88,0.00029501,2]
[310037576,1704295841407,-1000.0,0.000296,2]
[310037577,1704295841417,-326.36820772,0.00029699,4]
[310037578,1704295841426,-778.64,0.00029699,2]
[310037579,1704295841436,-1000.0,0.000297,2]
[310037580,1704295841445,-10000.0,0.000297,2]
[310037581,1704295841454,-173183.84687002,0.000297,2]
[310037582,1704295841467,-71816.15312998,0.000297,2]
[310037583,1704295841477,-354.27077565,0.0002975,2]
[310037584,1704295841487,-778.64,0.00029999,2]
[310037585,1704295841496,-811.07666778,0.0003,4]
[310037586,1704295841506,-155.0,0.0003,4]
[310037587,1704295841515,-155.0,0.0003,4]
[310037588,1704295841525,-2541.63830816,0.0003,4]
[310037589,1704295841535,-444.14532641,0.0003,4]
[310037590,1704295841547,-460.72452493,0.0003,4]
[310037591,1704295841560,-117178.47710668,0.0003,4]
[310037592,1704295841580,-317.68833883,0.0003,4]
[310037593,1704295841593,-1638.49718638,0.0003,4]
[310037594,1704295841605,-299.5178,0.0003,4]
[310037595,1704295841626,-273.17803145,0.0003,4]
[310037596,1704295841638,-918.92275125,0.0003,4]
[310037597,1704295841652,-549.04591209,0.0003,4]
[310037631,1704295842796,-186559.01213065,0.0003,4]
[310037635,1704295842806,-8796.83988555,0.0003,4]
[310037638,1704295842815,-155.0,0.0003,2]
[310037641,1704295842824,-676.38772422,0.0003,4]
[310037644,1704295842833,-694.04787035,0.0003,4]
[310037647,1704295842843,-156.34,0.00030141,2]
[310037650,1704295842852,-158.75,0.00030302,2]
[310037652,1704295842861,-326.3682077,0.00030428,5]
[310037654,1704295842870,-778.71,0.00030689,2]
[310037656,1704295842880,-10112.70918205,0.0003069,2]
[310037660,1704295842910,-108983.29081795,0.0003069,2]
[310037662,1704295842920,-200.0,0.000308,11]
[310037664,1704295842929,-500.0,0.000309,11]
[310037666,1704295842941,-4409.25178025,0.000309,3]
[310037668,1704295842951,-307.81,0.00030945,2]
[310037670,1704295842961,-408.95039153,0.00030999,15]
[310037672,1704295842970,-245118.33365744,0.00031,2]
[310037674,1704295842983,-1412.18415497,0.00031,2]
[310037677,1704295842999,-6584.79600137,0.00031,2]
[310037680,1704295843019,-4592.50597043,0.00031,2]
[310037683,1704295843030,-3038.19626055,0.00031,2]
[310037685,1704295843042,-920.453401,0.00031,2]
[310037687,1704295843053,-152866.94513499,0.00031,2]
[310037690,1704295843065,-459.79552025,0.00031,2]
[310037692,1704295843081,-748.0629074,0.00031,2]
[310037700,1704295843146,-2642.87264914,0.00031,2]
[310037919,1704295845803,-1580.34648275,0.00031,2]
[310037920,1704295845816,-398.73750729,0.00031,2]
[310037921,1704295845923,-179636.77035242,0.00031,2]
[310037922,1704295845934,-152.0,0.0003109,3]
[310037923,1704295845943,-153.84,0.00031094,2]
[310037924,1704295845953,-152.17591791,0.00031137,2]
[310037925,1704295845962,-197.96458162,0.00031137,2]
[310037926,1704295845972,-326.3682077,0.00031156,5]
[310037927,1704295845982,-1026.484,0.00031408,2]
[310037928,1704295845991,-1926.0,0.00031408,2]
[310037929,1704295846001,-992.0,0.00031408,2]
[310037930,1704295846011,-151.0,0.00031435,120]
[310037931,1704295846021,-500.0,0.000315,2]
[310037932,1704295846031,-202.0,0.00031659,12]
[310037933,1704295846041,-506.0,0.0003171,2]
[310037934,1704295846051,-2894.0,0.0003171,2]
[310037935,1704295846060,-2265.0,0.0003171,2]
[310037936,1704295846069,-847.311,0.0003171,2]
[310037937,1704295846078,-386.0,0.0003171,2]
[310037938,1704295846087,-1026.0,0.0003171,2]
[310037939,1704295846096,-296.782,0.0003171,2]
[310037940,1704295846106,-942.0,0.0003171,2]
[310037941,1704295846115,-51373.0613625,0.000318,3]
[310037942,1704295846126,-156.34,0.00031853,2]
[310037943,1704295846135,-326.3682077,0.00031885,5]
[310037944,1704295846145,-150.8176596,0.000319,2]
[310037945,1704295846156,-150.8176596,0.000319,2]
[310037946,1704295846166,-651.22322879,0.00031945,3]
[310037947,1704295846175,-150.8176596,0.00031965,2]
[310037949,1704295846185,-296.83355854,0.00032,4]
[310037950,1704295846194,-11982.56234825,0.00032,2]
[310037951,1704295846213,-2898.49503481,0.00032,2]
[310037952,1704295846229,-646.065,0.00032,2]
[310037953,1704295846241,-325.42455408,0.00032,2]
[310037954,1704295846254,-1332.27306263,0.00032,2]
[310037955,1704295846290,-1037.86231187,0.00032,2]
[310037956,1704295846300,-793.78630349,0.00032,3]
[310038118,1704295865092,1115.45562416,0.0002399,2]
[310038119,1704295865122,20102.76741064,0.0002399,2]
[310038120,1704295867385,182.19558738,0.00022999,2]
[310038127,1704296128101,173.09315374,0.00022999,2]
[310038128,1704296165110,21218.2230348,0.0002399,2]
[310038129,1704296246130,290.03683948,0.0003,120]
[310038130,1704296308641,150.0,0.0003,120]
[310038131,1704296443411,150.0,0.0003,120]
[310038132,1704296444119,422.20069421,0.00022999,4]
[310038185,1704297031999,-3575.20240066,0.00024991,2]
[310038196,1704297032549,-331.64206216,0.00024991,2]
[310038197,1704297032574,-310.52152974,0.00024991,2]
[310038198,1704297032616,-413.90482051,0.00024991,2]
[310038254,1704297038042,-4250.7,0.0002499,2]
[310038255,1704297038060,-262.96695376,0.0002499,2]
[310038256,1704297038113,-620.07290513,0.0002499,2]
[310038257,1704297038246,-28153.93093591,0.0002499,2]
[310038258,1704297038260,-630.34580302,0.00024991,2]
[310038259,1704297038272,-3922.10081628,0.00024992,2]
[310038260,1704297038292,-150.0,0.00024996,2]
[310038261,1704297038310,-1094.74116953,0.00024997,2]
[310038262,1704297038325,-2508.445537,0.00025,2]
[310038263,1704297038340,-539.72,0.00025684,2]
[310038264,1704297038353,-164.14152257,0.00025962,2]
[310038265,1704297038367,-14779.50117076,0.00026,2]
[310038266,1704297038380,-2000.0,0.00026,2]
[310038267,1704297038393,-2000.0,0.00027,2]
[310038268,1704297038406,-1250.0,0.00027,3]
[310038269,1704297038421,-164.14152255,0.00027068,2]
[310038270,1704297038433,-250.0,0.000274,2]
[310038271,1704297038446,-203.0,0.00027496,2]
[310038272,1704297038458,-507.2,0.00027541,2]
[310038273,1704297038471,-436.76,0.00027701,2]
[310038274,1704297038483,-150.0,0.00027702,2]
[310038275,1704297038496,-194.89,0.00027707,2]
[310038276,1704297038508,-250.0,0.00027725,2]
[310038277,1704297038520,-250.0,0.00027813,2]
[310038278,1704297038532,-159.09,0.00027843,2]
[310038279,1704297038543,-492.8,0.00027926,2]
[310038280,1704297038556,-7807.32,0.00027945,2]
[310038281,1704297038568,-830.4,0.00027945,2]
[310038284,1704297038580,-539.72,0.00027948,2]
[310038286,1704297038591,-185.38,0.00027994,8]
[310038288,1704297038604,-2000.0,0.00028,2]
[310038289,1704297038615,-202.3185109,0.00028,2]
[310038292,1704297038627,-159.09,0.0002805,2]
[310038294,1704297038638,-164.14152255,0.00028175,2]
[310038296,1704297038650,-159.09,0.00028257,2]
[310038298,1704297038661,-153.9,0.00028267,2]
[310038301,1704297038674,-2181.0988732,0.00028271,28]
[310038302,1704297038686,-158.63,0.00028311,2]
[310038304,1704297038698,-159.09,0.00028464,2]
[310038306,1704297038709,-153.9,0.0002855,2]
[310038308,1704297038720,-159.09,0.00028672,2]
[310038310,1704297038732,-436.76,0.0002868,2]
[310038312,1704297038743,-153.9,0.00028833,2]
[310038313,1704297038755,-1579.349333,0.00028866,2]
[310038315,1704297038766,-523.25492718,0.00028874,7]
[310038317,1704297038777,-167.05526445,0.00028874,2]
[310038319,1704297038789,-38106.1141,0.00028876,2]
[310038321,1704297038806,-280.0384,0.00028876,2]
[310038323,1704297038818,-159.09,0.00028879,2]
[310038325,1704297038829,-1000.0,0.00028886,2]
[310038327,1704297038840,-2662.3696,0.00028899,2]
[310038329,1704297038852,-1842.23178668,0.00028998,2]
[310038330,1704297038863,-155.0,0.00028998,2]
[310038333,1704297038879,-4010.8664538,0.00028999,2]
[310038334,1704297038891,-31351.92576645,0.00029,2]
[310038337,1704297038910,-11436.79329372,0.00029,2]
[310038339,1704297038925,-670.42701536,0.00029,2]
[310038343,1704297038956,-508.620414,0.00029,2]
[310038385,1704297039476,-426.06257299,0.00029,2]
[310038464,1704297041274,-202.3185109,0.00028049,2]
[310038465,1704297041284,-19557.30988017,0.00029,2]
[310038466,1704297041293,-2000.0,0.00029,2]
[310038467,1704297041304,-1300.0,0.00029,3]
[310038468,1704297041313,-159.09,0.00029086,2]
[310038469,1704297041322,-153.9,0.00029115,2]
[310038470,1704297041331,-164.14152255,0.00029281,2]
[310038471,1704297041340,-159.09,0.00029294,2]
[310038472,1704297041350,-158.63,0.00029377,2]
[310038473,1704297041359,-153.9,0.00029398,2]
[310038474,1704297041368,-500.0,0.000295,2]
[310038475,1704297041378,-932.1998,0.000295,3]
[310038476,1704297041387,-354.27077564,0.000295,2]
[310038477,1704297041397,-33776.9302,0.000296,2]
[310038478,1704297041407,-1000.0,0.000296,2]
[310038479,1704297041416,-245000.0,0.000296,2]
[310038480,1704297041426,-1000.0,0.000296,2]
[310038481,1704297041435,-436.76,0.00029658,2]
[310038482,1704297041445,-153.9,0.00029681,2]
[310038483,1704297041455,-205.0,0.00029839,2]
[310038484,1704297041464,-153.9,0.00029963,2]
[310038485,1704297041474,-3186.48579295,0.0003,4]
[310038486,1704297041483,-1000.0,0.0003,2]
[310038487,1704297041492,-155.0,0.0003,2]
[310038488,1704297041501,-990.0,0.0003,4]
[310038489,1704297041511,-2000.0,0.0003,2]
[310038490,1704297041520,-1208.91457717,0.0003,4]
[310038491,1704297041530,-7940.21,0.00030137,2]
[310038492,1704297041539,-539.72,0.00030211,2]
[310038493,1704297041550,-153.9,0.00030246,2]
[310038494,1704297041559,-164.14152255,0.00030387,2]
[310038495,1704297041568,-153.84,0.00030412,2]
[310038496,1704297041577,-158.63,0.00030442,2]
[310038497,1704297041586,-153.9,0.00030529,2]
[310038498,1704297041596,-436.76,0.00030637,2]
[310038500,1704297041605,-678.75356354,0.00030718,2]
[310038502,1704297041614,-153.9,0.00030812,2]
[310038504,1704297041624,-1263.03366116,0.00030899,4]
[310038506,1704297041633,-170.41202413,0.000309,2]
[310038508,1704297041642,-168.16911114,0.000309,3]
[310038509,1704297041651,-507.2,0.00030983,2]
[310038511,1704297041661,-198.26231933,0.0003099,2]
[310038513,1704297041670,-946.6767217,0.00030999,2]
[310038515,1704297041679,-500000.0,0.00031,2]
[310038517,1704297041689,-2000.0,0.00031,2]
[310038518,1704297041699,-1350.0,0.00031,3]
[310038519,1704297041709,-151.0,0.00031072,120]
[310038520,1704297041718,-153.9,0.00031094,2]
[310038521,1704297041727,-152.24610493,0.00031137,2]
[310038522,1704297041737,-167.4,0.00031197,2]
[310038523,1704297041746,-153.84,0.00031333,2]
[310038524,1704297041756,-492.8,0.00031416,2]
[310038525,1704297041765,-164.14152255,0.00031494,2]
[310038526,1704297041775,-500.0,0.000315,2]
[310038527,1704297041784,-158.63,0.00031507,2]
[310038528,1704297041795,-170.41202413,0.00031525,2]
[310038529,1704297041807,-436.76,0.00031615,2]
[310038530,1704297041817,-151.0,0.00031706,30]
[310038531,1704297041826,-278.892,0.0003171,2]
[310038532,1704297041836,-431.532,0.0003171,2]
[310038533,1704297041846,-692.487,0.0003171,2]
[310038534,1704297041856,-942.0,0.0003171,2]
[310038535,1704297041865,-1255.0,0.0003171,2]
[310038536,1704297041875,-1234.0,0.0003171,2]
[310038537,1704297041884,-496.963,0.0003171,2]
[310038538,1704297041893,-813.855,0.0003171,2]
[310038539,1704297041903,-435.561,0.0003171,2]
[310038540,1704297041912,-750.0,0.0003171,2]
[310038541,1704297041922,-505.0,0.0003171,2]
[310038542,1704297041933,-2894.0,0.0003171,2]
[310038543,1704297041943,-553.001,0.0003171,2]
[310038544,1704297041952,-3621.479,0.0003171,2]
[310038545,1704297041962,-10731.259,0.0003171,2]
[310038546,1704297041971,-2265.0,0.0003171,2]
[310038547,1704297041981,-1023.03,0.0003171,2]
[310038548,1704297041990,-812.175,0.0003171,2]
[310038549,1704297041999,-150.0,0.0003171,2]
[310038550,1704297042009,-1026.0,0.0003171,2]
[310038551,1704297042018,-150.0,0.0003171,2]
[310038552,1704297042028,-150.0,0.00031776,2]
[310038553,1704297042037,-250.0,0.00031776,2]
[310038554,1704297042047,-175.73,0.000318,2]
[310038555,1704297042058,-5940.0,0.000318,2]
[310038556,1704297042067,-20000.0,0.000318,2]
[310038557,1704297042077,-168.16911114,0.00031898,4]
[310038558,1704297042086,-2000.0,0.00031898,4]
[310038559,1704297042096,-197.68369886,0.00031899,3]
[310038560,1704297042107,-2574.45265308,0.000319,3]
[310038561,1704297042117,-150.83373251,0.000319,2]
[310038562,1704297042127,-155.0,0.00031997,2]
[310038563,1704297042136,-426.27254563,0.00031997,2]
[310038564,1704297042145,-182.97925062,0.00031997,2]
[310038565,1704297042155,-400.0,0.00031997,2]
[310038566,1704297042166,-234.1070369,0.00031997,2]
[310038567,1704297042176,-557.56513227,0.00031997,2]
[310038568,1704297042185,-461.81124334,0.00031997,4]
[310038569,1704297042194,-687.97415573,0.00031997,2]
[310038570,1704297042204,-207.00797767,0.00031998,4]
[310038571,1704297042214,-695.17387652,0.00031998,4]
[310038572,1704297042223,-155.0,0.00031998,4]
[310038573,1704297042234,-774.21119213,0.00031998,4]
[310038574,1704297042243,-579.36551343,0.00031998,4]
[310038575,1704297042252,-269.60010403,0.00031998,2]
[310038576,1704297042262,-690.1250087,0.00031998,2]
[310038577,1704297042271,-151058.8757876,0.00031998,2]
[310038578,1704297042281,-691.01189247,0.00031998,4]
[310038579,1704297042290,-10900.1364052,0.00031999,4]
[310038580,1704297042300,-15345.41430271,0.00032,3]
[310038581,1704297042310,-148709.31015955,0.00032,10]
[310038582,1704297042319,-5000.0,0.00032,7]
[310038583,1704297042329,-296.83355854,0.00032,4]
[310038584,1704297042339,-2000.0,0.00032,2]
[310038585,1704297042348,-200.0,0.00032,2]
[310038586,1704297042358,-186.25528522,0.00032,7]
[310038587,1704297042367,-2000.0,0.00032,2]
[310038588,1704297042377,-3000.0,0.00032,2]
[310038589,1704297042387,-321.62,0.00032,2]
[310038590,1704297042397,-500.0,0.00032044,2]
[310038591,1704297042406,-250.0,0.0003205,2]
[310038592,1704297042416,-2326.0,0.000321,2]
[310038593,1704297042425,-29229.0,0.000321,2]
[310038594,1704297042435,-170.41202413,0.0003215,2]
[310038595,1704297042445,-2574.45265301,0.00032154,3]
[310038596,1704297042454,-205.0,0.00032159,6]
[310038597,1704297042464,-150.00000018,0.00032228,2]
[310038598,1704297042474,-153.84,0.00032255,2]
[310038599,1704297042483,-1063.91837667,0.00032277,2]
[310038600,1704297042493,-501.20804318,0.00032284,4]
[310038601,1704297042503,-155.0,0.00032284,4]
[310038602,1704297042513,-222.59532302,0.00032285,4]
[310038603,1704297042522,-21512.62385919,0.00032286,7]
[310038604,1704297042532,-4233.33125968,0.00032286,7]
[310038605,1704297042541,-48379.92221323,0.00032286,7]
[310038606,1704297042551,-7278.19425943,0.00032286,7]
[310038607,1704297042561,-25448.19078553,0.00032286,7]
[310038608,1704297042571,-200.0,0.0003232,2]
[310038609,1704297042581,-150.0,0.00032324,2]
[310038610,1704297042591,-250.0,0.00032324,2]
[310038611,1704297042601,-350.36,0.00032348,2]
[310038612,1704297042611,-151.0,0.00032353,7]
[310038613,1704297042621,-161.94573961,0.00032384,6]
[310038614,1704297042631,-893.36225534,0.00032384,2]
[310038615,1704297042645,-150.8337322,0.00032388,2]
[310038616,1704297042655,-22205.00858845,0.000324,7]
[310038617,1704297042665,-201.25933419,0.000324,2]
[310038618,1704297042681,-2574.45265301,0.00032408,4]
[310038619,1704297042691,-1778.0,0.00032417,5]
[310038620,1704297042702,-318.07203018,0.00032448,30]
[310038621,1704297042712,-539.72,0.00032475,2]
[310038623,1704297042721,-212.0,0.00032476,7]
[310038625,1704297042731,-158.013395,0.00032477,2]
[310038627,1704297042740,-8166.967369,0.00032477,2]
[310038628,1704297042750,-332.636443,0.00032477,2]
[310038629,1704297042759,-249.819426,0.00032477,2]
[310038630,1704297042768,-153.196501,0.00032477,7]
[310038631,1704297042778,-176.293836,0.00032477,7]
[310038632,1704297042787,-151.0,0.00032477,7]
[310038633,1704297042802,-151.0,0.00032477,7]
[310038634,1704297042811,-151.0,0.00032477,7]
[310038635,1704297042821,-151.0,0.00032477,7]
[310038636,1704297042830,-151.0,0.00032477,7]
[310038637,1704297042841,-174.32507,0.00032477,7]
[310038638,1704297042851,-151.0,0.00032477,7]
[310038639,1704297042861,-151.0,0.00032477,7]
[310038641,1704297042871,-151.0,0.00032477,7]
[310038644,1704297042881,-151.0,0.00032477,7]
[310038648,1704297042891,-248.595496,0.00032477,7]
[310038651,1704297042903,-151.0,0.00032477,7]
[310038653,1704297042913,-151.0,0.00032477,7]
[310038655,1704297042922,-172.572655,0.00032477,7]
[310038657,1704297042932,-151.0,0.00032477,7]
[310038658,1704297042942,-657.501237,0.00032477,7]
[310038660,1704297042951,-165.088608,0.00032477,7]
[310038661,1704297042961,-211.075686,0.00032477,7]
[310038663,1704297042972,-96304.629087,0.00032477,5]
[310038665,1704297042982,-1200.00000001,0.00032484,3]
[310038667,1704297042991,-200000.0,0.000325,7]
[310038668,1704297043001,-140327.53457669,0.000325,3]
[310038669,1704297043011,-150.0,0.00032511,2]
[310038670,1704297043021,-152.0,0.00032556,4]
[310038671,1704297043031,-158.63,0.00032572,2]
[310038673,1704297043041,-893.36225533,0.0003258,2]
[310038675,1704297043053,-436.76,0.00032594,2]
[310038676,1704297043062,-250.0,0.00032598,2]
[310038677,1704297043072,-164.14152255,0.000326,2]
[310038678,1704297043082,-2574.45265301,0.00032662,4]
[310038679,1704297043092,-205.673008,0.00032676,21]
[310038680,1704297043102,-451.21,0.00032679,2]
[310038681,1704297043112,-400.26,0.00032679,2]
[310038682,1704297043122,-1895.66,0.00032679,2]
[310038683,1704297043132,-400.26,0.0003269,2]
[310038684,1704297043142,-151.0,0.000327,7]
[310038685,1704297043152,-151.0,0.000327,7]
[310038686,1704297043161,-151.0,0.000327,7]
[310038687,1704297043172,-151.0,0.000327,7]
[310038688,1704297043182,-151.0,0.000327,7]
[310038689,1704297043191,-151.0,0.000327,7]
[310038690,1704297043201,-151.0,0.000327,7]
[310038691,1704297043211,-151.0,0.000327,7]
[310038692,1704297043221,-657.501237,0.000327,7]
[310038693,1704297043230,-1230.947351,0.000327,2]
[310038694,1704297043240,-1230.94735081,0.000327,2]
[310038695,1704297043250,-1230.94735081,0.000327,2]
[310038696,1704297043259,-1230.94735081,0.000327,2]
[310038697,1704297043270,-1230.94735081,0.000327,2]
[310038698,1704297043279,-1230.94735081,0.000327,2]
[310038699,1704297043289,-1230.94735081,0.000327,2]
[310038700,1704297043298,-1230.94735081,0.000327,2]
[310038701,1704297043310,-198.26231933,0.00032766,2]
[310038702,1704297043320,-15620.0,0.00032767,4]
[310038703,1704297043330,-16466.01389771,0.00032774,2]
[310038704,1704297043340,-508.4144921,0.00032774,4]
[310038705,1704297043352,-150.01,0.00032775,2]
[310038706,1704297043362,-3285.13803586,0.00032775,2]
[310038707,1704297043373,-170.41202413,0.00032775,2]
[310038708,1704297043384,-151.0,0.00032776,7]
[310038709,1704297043394,-151.0,0.00032776,7]
[310038710,1704297043404,-151.0,0.00032776,7]
[310038711,1704297043414,-151.0,0.00032776,7]
[310038712,1704297043424,-151.0,0.00032776,7]
[310038713,1704297043433,-151.0,0.00032776,7]
[310038714,1704297043443,-151.0,0.00032776,7]
[310038715,1704297043453,-151.0,0.00032776,7]
[310038716,1704297043464,-151.0,0.00032776,7]
[310038718,1704297043474,-151.0,0.00032776,7]
[310038720,1704297043483,-151.0,0.00032776,7]
[310038722,1704297043494,-151.0,0.00032776,7]
[310038723,1704297043503,-250.0,0.00032776,2]
[310038725,1704297043513,-151.0,0.00032776,7]
[310038726,1704297043523,-151.0,0.00032776,7]
[310038727,1704297043533,-151.0,0.00032776,7]
[310038728,1704297043543,-657.501237,0.00032776,7]
[310038730,1704297043556,-1479847.19985386,0.00032776,2]
[310038731,1704297043566,-207.54323275,0.00032776,4]
[310038732,1704297043576,-893.36225533,0.00032776,2]
[310038733,1704297043585,-2204.1830581,0.00032778,2]
[310038734,1704297043595,-3337.5899695,0.00032778,2]
[310038735,1704297043605,-5809.0428145,0.00032778,2]
[310038736,1704297043615,-46263.7890455,0.00032778,2]
[310038738,1704297043625,-1444.6956124,0.00032778,2]
[310038740,1704297043634,-15583.0868525,0.00032778,2]
[310038749,1704297043812,-189060.3509638,0.00032778,2]
[310038750,1704297043828,-151.0,0.00032778,7]
[310038751,1704297043838,-151.0,0.00032778,7]
[310038752,1704297043847,-151.0,0.00032778,7]
[310038753,1704297043857,-207.0,0.00032778,7]
[310038754,1704297043866,-9754.03,0.000328,2]
[310038755,1704297043876,-2750.0,0.000328,2]
[310038756,1704297043886,-151.0,0.000328,7]
[310038757,1704297043895,-151.0,0.000328,7]
[310038758,1704297043904,-151.0,0.000328,7]
[310038759,1704297043914,-151.0,0.000328,7]
[310038760,1704297043924,-151.0,0.000328,7]
[310038761,1704297043933,-3000.0,0.000328,2]
[310038762,1704297043943,-657.501237,0.000328,7]
[310038763,1704297043952,-1000.0,0.00032827,7]
[310038764,1704297043962,-1000.0,0.00032827,7]
[310038765,1704297043971,-1000.0,0.00032827,7]
[310038766,1704297043981,-495.44211089,0.00032827,3]
[310038767,1704297043990,-500.0,0.00032827,3]
[310038768,1704297044000,-1000.0,0.00032827,7]
[310038769,1704297044009,-1300.94765779,0.00032827,3]
[310038770,1704297044019,-1000.0,0.00032827,7]